[Event "*** Titled Tuesday Blitz"]
[Site "Chess.com"]
[Date "2020.04.21"]
[Round "3"]
[White "JoakimVonAnd"]
[Black "I_Hit_18K_on_BS"]
[Result "1-0"]
[WhiteElo "2496"]
[BlackElo "2116"]
[TimeControl "180+1"]
[EndTime "10:28:16 PDT"]
[Termination "JoakimVonAnd won by checkmate"]

1. d4 {[%clk 0:03:00.9]} 1... Nf6 {[%clk 0:02:55.9]} 2. c4 {[%clk 0:03:00.8]}
2... g6 {[%clk 0:02:54.9]} 3. Nc3 {[%clk 0:03:00.7]} 3... d5 {[%clk 0:02:55.2]}
4. Bf4 {[%clk 0:02:56.1]} 4... Bg7 {[%clk 0:02:53.9]} 5. e3 {[%clk 0:02:56.1]}
5... O-O {[%clk 0:02:52.9]} 6. Rc1 {[%clk 0:02:56]} 6... dxc4 {[%clk 0:02:31.2]}
7. Bxc4 {[%clk 0:02:54.5]} 7... c5 {[%clk 0:02:31.4]} 8. dxc5 {[%clk 0:02:47.6]}
8... Qa5 {[%clk 0:02:29]} 9. Ne2 {[%clk 0:02:41]} 9... Qxc5 {[%clk 0:02:26.4]}
10. Qb3 {[%clk 0:02:40.5]} 10... Nc6 {[%clk 0:02:11.3]} 11. Qb5 {[%clk
0:02:25.6]} 11... Qxb5 {[%clk 0:01:53]} 12. Nxb5 {[%clk 0:02:26.5]} 12... Nh5
{[%clk 0:01:48.5]} 13. Nc7 {[%clk 0:02:24.2]} 13... Nxf4 {[%clk 0:01:45.6]} 14.
Nxa8 {[%clk 0:02:21.5]} 14... Nxg2+ {[%clk 0:01:45.2]} 15. Kf1 {[%clk
0:02:20.4]} 15... Bh3 {[%clk 0:01:44.3]} 16. Ng1 {[%clk 0:02:07.6]} 16... Nxe3+
{[%clk 0:01:36.7]} 17. Ke2 {[%clk 0:02:07.6]} 17... Bg2 {[%clk 0:01:05.7]} 18.
fxe3 {[%clk 0:01:59.2]} 18... Bxh1 {[%clk 0:01:04.8]} 19. Nc7 {[%clk 0:02:00.1]}
19... Be4 {[%clk 0:01:00]} 20. Nd5 {[%clk 0:01:59.2]} 20... Rd8 {[%clk
0:00:53.3]} 21. Nc3 {[%clk 0:01:54.9]} 21... Bf5 {[%clk 0:00:49.3]} 22. Nf3
{[%clk 0:01:53.6]} 22... Bg4 {[%clk 0:00:44.1]} 23. Bd5 {[%clk 0:01:39.9]} 23...
Bxc3 {[%clk 0:00:35.5]} 24. Bxc6 {[%clk 0:01:38.4]} 24... Bxb2 {[%clk
0:00:28.4]} 25. Rc2 {[%clk 0:01:32.6]} 25... bxc6 {[%clk 0:00:23]} 26. Rxb2
{[%clk 0:01:32.2]} 26... e5 {[%clk 0:00:21.7]} 27. Kf2 {[%clk 0:01:32]} 27... e4
{[%clk 0:00:20.2]} 28. Ne5 {[%clk 0:01:30.9]} 28... Be6 {[%clk 0:00:16.6]} 29.
Nxc6 {[%clk 0:01:29.1]} 29... a6 {[%clk 0:00:17.1]} 30. Nxd8 {[%clk 0:01:28.8]}
30... Bd5 {[%clk 0:00:16.3]} 31. Nb7 {[%clk 0:01:28]} 31... Kg7 {[%clk 0:00:15]}
32. Nc5 {[%clk 0:01:27.9]} 32... a5 {[%clk 0:00:15.5]} 33. a4 {[%clk 0:01:27.2]}
33... Kf6 {[%clk 0:00:12.7]} 34. Rb5 {[%clk 0:01:27.5]} 34... Kf5 {[%clk
0:00:12.2]} 35. Rxa5 {[%clk 0:01:27]} 35... Kg4 {[%clk 0:00:12.1]} 36. Nd7
{[%clk 0:01:25.4]} 36... f5 {[%clk 0:00:11.1]} 37. Nf6+ {[%clk 0:01:24.4]} 37...
Kh4 {[%clk 0:00:09.1]} 38. Nxd5 {[%clk 0:01:25.3]} 38... g5 {[%clk 0:00:08.7]}
39. Ra7 {[%clk 0:01:26.2]} 39... Kg4 {[%clk 0:00:07.3]} 40. Rxh7 {[%clk
0:01:25.4]} 40... f4 {[%clk 0:00:07.6]} 41. a5 {[%clk 0:01:25.1]} 41... f3
{[%clk 0:00:07.1]} 42. a6 {[%clk 0:01:24.3]} 42... Kf5 {[%clk 0:00:07.3]} 43. a7
{[%clk 0:01:24.8]} 43... Kg4 {[%clk 0:00:08.2]} 44. a8=Q {[%clk 0:01:25.1]}
44... Kf5 {[%clk 0:00:08.3]} 45. Qc8+ {[%clk 0:01:24.1]} 45... Kg6 {[%clk
0:00:07.4]} 46. Qe6+ {[%clk 0:01:22.6]} 46... Kxh7 {[%clk 0:00:07.2]} 47. Qf7+
{[%clk 0:01:22.8]} 47... Kh6 {[%clk 0:00:05.7]} 48. Ne7 {[%clk 0:01:20.6]} 48...
g4 {[%clk 0:00:04.7]} 49. Qg6# {[%clk 0:01:21.5]} 1-0

[Event "*** Titled Tuesday Blitz"]
[Site "Chess.com"]
[Date "2020.04.21"]
[Round "3"]
[White "tamarozi99"]
[Black "KarpovVadim"]
[Result "0-1"]
[WhiteElo "1997"]
[BlackElo "2307"]
[TimeControl "180+1"]
[EndTime "10:28:17 PDT"]
[Termination "KarpovVadim won by resignation"]

1. e4 {[%clk 0:03:00.9]} 1... e5 {[%clk 0:02:58.1]} 2. Nf3 {[%clk 0:03:00.9]}
2... Nc6 {[%clk 0:02:57]} 3. Bb5 {[%clk 0:03:00.6]} 3... Nge7 {[%clk 0:02:56.3]}
4. c3 {[%clk 0:02:57.8]} 4... a6 {[%clk 0:02:55]} 5. Ba4 {[%clk 0:02:57.1]} 5...
g6 {[%clk 0:02:55]} 6. d3 {[%clk 0:02:50]} 6... Bg7 {[%clk 0:02:53.4]} 7. Be3
{[%clk 0:02:50.1]} 7... O-O {[%clk 0:02:52.9]} 8. Nbd2 {[%clk 0:02:50.1]} 8...
b5 {[%clk 0:02:51.4]} 9. Bc2 {[%clk 0:02:49.3]} 9... d6 {[%clk 0:02:51]} 10. h3
{[%clk 0:02:46.7]} 10... h6 {[%clk 0:02:43.6]} 11. Nf1 {[%clk 0:02:45.7]} 11...
f5 {[%clk 0:02:41.1]} 12. d4 {[%clk 0:02:26.3]} 12... fxe4 {[%clk 0:02:19.7]}
13. Bxe4 {[%clk 0:02:26.3]} 13... d5 {[%clk 0:02:19.4]} 14. Bc2 {[%clk
0:02:08.6]} 14... e4 {[%clk 0:02:17.3]} 15. Ne5 {[%clk 0:01:56.3]} 15... Nxe5
{[%clk 0:02:06.7]} 16. dxe5 {[%clk 0:01:57.2]} 16... Bxe5 {[%clk 0:01:52.2]} 17.
Bxh6 {[%clk 0:01:54.9]} 17... Rf7 {[%clk 0:01:52]} 18. Bxe4 {[%clk 0:01:47.4]}
18... c6 {[%clk 0:01:41.2]} 19. Bc2 {[%clk 0:01:39.1]} 19... Bf5 {[%clk
0:01:40.2]} 20. Ne3 {[%clk 0:01:34.9]} 20... d4 {[%clk 0:01:32.2]} 21. Nxf5
{[%clk 0:01:26.9]} 21... gxf5 {[%clk 0:01:25.6]} 22. Bb3 {[%clk 0:01:11.6]}
22... dxc3 {[%clk 0:01:19.7]} 23. Qxd8+ {[%clk 0:01:10.1]} 23... Rxd8 {[%clk
0:01:18.1]} 24. Bxf7+ {[%clk 0:01:09.6]} 24... Kxf7 {[%clk 0:01:18.9]} 25. O-O
{[%clk 0:00:51.5]} 25... cxb2 {[%clk 0:01:14.7]} 26. Rab1 {[%clk 0:00:49.6]}
26... Nd5 {[%clk 0:01:12.8]} 27. Rfe1 {[%clk 0:00:46]} 27... Bd4 {[%clk
0:01:09]} 28. Bd2 {[%clk 0:00:37.9]} 28... b4 {[%clk 0:01:04.8]} 29. g3 {[%clk
0:00:34.6]} 29... a5 {[%clk 0:01:03.8]} 30. Kg2 {[%clk 0:00:33.1]} 30... a4
{[%clk 0:01:03.3]} 31. g4 {[%clk 0:00:23.3]} 31... a3 {[%clk 0:01:00.6]} 32.
gxf5 {[%clk 0:00:19.2]} 32... b3 {[%clk 0:01:00]} 33. axb3 {[%clk 0:00:18.7]}
33... a2 {[%clk 0:00:59]} 34. Rbd1 {[%clk 0:00:09.1]} 34... a1=Q {[%clk
0:00:51]} 35. Rxa1 {[%clk 0:00:08.3]} 35... bxa1=Q {[%clk 0:00:50.2]} 36. Rxa1
{[%clk 0:00:09.2]} 36... Bxa1 {[%clk 0:00:48.8]} 37. Bg5 {[%clk 0:00:09.3]}
37... Rg8 {[%clk 0:00:46.4]} 0-1

[Event "*** Titled Tuesday Blitz"]
[Site "Chess.com"]
[Date "2020.04.21"]
[Round "3"]
[White "Rsnr"]
[Black "Muracle"]
[Result "1-0"]
[WhiteElo "2784"]
[BlackElo "2607"]
[TimeControl "180+1"]
[EndTime "10:28:18 PDT"]
[Termination "Rsnr won by resignation"]

1. d4 {[%clk 0:03:00.9]} 1... Nf6 {[%clk 0:03:00]} 2. c4 {[%clk 0:03:01.6]} 2...
g6 {[%clk 0:03:00.3]} 3. g3 {[%clk 0:03:02.2]} 3... c6 {[%clk 0:03:00.6]} 4. Bg2
{[%clk 0:03:02.5]} 4... d5 {[%clk 0:03:00.9]} 5. Qa4 {[%clk 0:03:03.2]} 5...
dxc4 {[%clk 0:02:57.9]} 6. Qxc4 {[%clk 0:03:02.6]} 6... Bg7 {[%clk 0:02:58]} 7.
Nf3 {[%clk 0:02:59.8]} 7... O-O {[%clk 0:02:57.6]} 8. O-O {[%clk 0:03:00.4]}
8... Nbd7 {[%clk 0:02:57.4]} 9. Nc3 {[%clk 0:02:58.7]} 9... Nb6 {[%clk
0:02:56.9]} 10. Qd3 {[%clk 0:02:53.1]} 10... Bg4 {[%clk 0:02:42.5]} 11. Rd1
{[%clk 0:02:47.7]} 11... Nfd5 {[%clk 0:02:35.4]} 12. a3 {[%clk 0:02:44.4]} 12...
Nxc3 {[%clk 0:02:22.4]} 13. bxc3 {[%clk 0:02:40.8]} 13... Be6 {[%clk 0:02:20.4]}
14. Nd2 {[%clk 0:02:32.7]} 14... Qd7 {[%clk 0:01:59.6]} 15. a4 {[%clk 0:02:14]}
15... Rad8 {[%clk 0:01:48.7]} 16. a5 {[%clk 0:02:10.9]} 16... Nd5 {[%clk
0:01:48.7]} 17. e3 {[%clk 0:02:06.8]} 17... c5 {[%clk 0:01:43.8]} 18. Ba3 {[%clk
0:02:05.6]} 18... b6 {[%clk 0:01:21.6]} 19. axb6 {[%clk 0:00:59.3]} 19... axb6
{[%clk 0:01:22.5]} 20. Nc4 {[%clk 0:00:54.6]} 20... Qb5 {[%clk 0:01:08.2]} 21.
Rdb1 {[%clk 0:00:43.3]} 21... Nb4 {[%clk 0:00:59]} 22. Bxb4 {[%clk 0:00:26.3]}
22... Bxc4 {[%clk 0:00:56.4]} 23. Qd2 {[%clk 0:00:26.9]} 23... Ra8 {[%clk
0:00:40.6]} 24. Bxa8 {[%clk 0:00:23]} 24... Bd3 {[%clk 0:00:36.9]} 25. c4 {[%clk
0:00:09.7]} 25... Qxc4 {[%clk 0:00:28.2]} 26. Rc1 {[%clk 0:00:10.1]} 26... Qb5
{[%clk 0:00:26.1]} 27. Bc3 {[%clk 0:00:09.6]} 27... h5 {[%clk 0:00:19.7]} 28.
dxc5 {[%clk 0:00:09.3]} 28... Bxc3 {[%clk 0:00:18.7]} 29. Qxc3 {[%clk
0:00:10.2]} 1-0

[Event "*** Titled Tuesday Blitz"]
[Site "Chess.com"]
[Date "2020.04.21"]
[Round "3"]
[White "earling8018"]
[Black "saisree"]
[Result "0-1"]
[WhiteElo "2039"]
[BlackElo "2317"]
[TimeControl "180+1"]
[EndTime "10:28:18 PDT"]
[Termination "saisree won by resignation"]

1. d4 {[%clk 0:03:00.9]} 1... d5 {[%clk 0:02:59.7]} 2. c4 {[%clk 0:03:01]} 2...
e6 {[%clk 0:02:59.5]} 3. Nc3 {[%clk 0:02:58.1]} 3... Nf6 {[%clk 0:02:59.9]} 4.
Nf3 {[%clk 0:02:57.3]} 4... c6 {[%clk 0:02:58.3]} 5. cxd5 {[%clk 0:02:53.7]}
5... exd5 {[%clk 0:02:58.1]} 6. Bg5 {[%clk 0:02:52.8]} 6... Be7 {[%clk
0:02:56.7]} 7. Qc2 {[%clk 0:02:50]} 7... O-O {[%clk 0:02:53.2]} 8. e3 {[%clk
0:02:49.3]} 8... h6 {[%clk 0:02:52.3]} 9. Bh4 {[%clk 0:02:41.8]} 9... Be6 {[%clk
0:02:45.8]} 10. Bxf6 {[%clk 0:02:30.1]} 10... Bxf6 {[%clk 0:02:45.1]} 11. Bd3
{[%clk 0:02:28.8]} 11... Nd7 {[%clk 0:02:41.2]} 12. h3 {[%clk 0:02:20.4]} 12...
b5 {[%clk 0:02:37.6]} 13. O-O {[%clk 0:01:59.2]} 13... Qb6 {[%clk 0:02:22.1]}
14. Ne2 {[%clk 0:01:56.4]} 14... Rfc8 {[%clk 0:02:11.1]} 15. Nf4 {[%clk
0:01:52.9]} 15... c5 {[%clk 0:02:03.7]} 16. Nxe6 {[%clk 0:01:36.1]} 16... fxe6
{[%clk 0:01:57.2]} 17. Rfc1 {[%clk 0:01:31.5]} 17... c4 {[%clk 0:01:54.5]} 18.
Bh7+ {[%clk 0:01:30.6]} 18... Kh8 {[%clk 0:01:53.9]} 19. Bg6 {[%clk 0:01:06.1]}
19... Nf8 {[%clk 0:01:46.9]} 20. Bf7 {[%clk 0:01:01.9]} 20... Rc7 {[%clk
0:01:42]} 21. Bh5 {[%clk 0:01:02.1]} 21... b4 {[%clk 0:01:35.1]} 22. Ne5 {[%clk
0:01:00.2]} 22... Bxe5 {[%clk 0:01:27.6]} 23. dxe5 {[%clk 0:00:59.9]} 23... Nd7
{[%clk 0:01:28.1]} 24. Qg6 {[%clk 0:00:33.6]} 24... Nxe5 {[%clk 0:01:26]} 25.
Qg3 {[%clk 0:00:34.1]} 25... Nd3 {[%clk 0:01:25.2]} 26. Rc2 {[%clk 0:00:32.4]}
26... Rf8 {[%clk 0:01:14.3]} 27. Bg6 {[%clk 0:00:31.8]} 27... Nc5 {[%clk
0:00:58.3]} 28. f4 {[%clk 0:00:18.5]} 28... b3 {[%clk 0:00:51.7]} 29. Rf2 {[%clk
0:00:15.9]} 29... bxa2 {[%clk 0:00:45.5]} 30. Rxa2 {[%clk 0:00:16.1]} 30... Qb3
{[%clk 0:00:45.3]} 31. Ra5 {[%clk 0:00:12]} 31... Nd3 {[%clk 0:00:41.8]} 32. Rd2
{[%clk 0:00:10.7]} 32... Qb4 {[%clk 0:00:39.4]} 33. f5 {[%clk 0:00:09.3]} 33...
Qxa5 {[%clk 0:00:36.5]} 34. fxe6 {[%clk 0:00:09.5]} 34... Re7 {[%clk 0:00:33]}
35. Bf7 {[%clk 0:00:08.8]} 35... Qxd2 {[%clk 0:00:31.2]} 0-1

[Event "*** Titled Tuesday Blitz"]
[Site "Chess.com"]
[Date "2020.04.21"]
[Round "3"]
[White "NTDVAN12"]
[Black "Keks2017"]
[Result "1-0"]
[WhiteElo "2612"]
[BlackElo "2395"]
[TimeControl "180+1"]
[EndTime "10:28:19 PDT"]
[Termination "NTDVAN12 won by resignation"]

1. d4 {[%clk 0:03:00.9]} 1... d6 {[%clk 0:02:59.6]} 2. e4 {[%clk 0:03:00.4]}
2... Nf6 {[%clk 0:02:58.9]} 3. Nc3 {[%clk 0:03:00.4]} 3... g6 {[%clk 0:02:58.5]}
4. Bg5 {[%clk 0:02:59.9]} 4... Bg7 {[%clk 0:02:58.4]} 5. Qd2 {[%clk 0:03:00.4]}
5... c6 {[%clk 0:02:57.8]} 6. Bd3 {[%clk 0:02:53.9]} 6... Nbd7 {[%clk
0:02:55.6]} 7. Nf3 {[%clk 0:02:51]} 7... e5 {[%clk 0:02:53.1]} 8. O-O-O {[%clk
0:02:42.3]} 8... Qe7 {[%clk 0:02:47.1]} 9. Kb1 {[%clk 0:02:39.5]} 9... b6 {[%clk
0:02:43.5]} 10. d5 {[%clk 0:02:27]} 10... c5 {[%clk 0:02:42.9]} 11. Bh6 {[%clk
0:02:03.3]} 11... Bxh6 {[%clk 0:02:42]} 12. Qxh6 {[%clk 0:02:04.2]} 12... a6
{[%clk 0:02:41.8]} 13. h4 {[%clk 0:02:00.3]} 13... b5 {[%clk 0:02:39]} 14. Qd2
{[%clk 0:01:46]} 14... Nb6 {[%clk 0:02:31.2]} 15. a3 {[%clk 0:01:38.7]} 15...
Bd7 {[%clk 0:02:17.6]} 16. Ng5 {[%clk 0:01:29.7]} 16... h6 {[%clk 0:02:14.9]}
17. Nh3 {[%clk 0:01:30]} 17... c4 {[%clk 0:02:13.1]} 18. Be2 {[%clk 0:01:25.8]}
18... a5 {[%clk 0:02:12.2]} 19. Qe3 {[%clk 0:01:26.4]} 19... Qd8 {[%clk
0:02:10.6]} 20. Na2 {[%clk 0:01:11.7]} 20... Qc7 {[%clk 0:01:54.2]} 21. f4
{[%clk 0:01:11.4]} 21... Bxh3 {[%clk 0:01:53.4]} 22. gxh3 {[%clk 0:01:05.8]}
22... Nfd7 {[%clk 0:01:52.2]} 23. h5 {[%clk 0:01:05.5]} 23... Qc5 {[%clk
0:01:38.6]} 24. Qg3 {[%clk 0:00:36]} 24... exf4 {[%clk 0:01:36.7]} 25. Qxf4
{[%clk 0:00:36.9]} 25... g5 {[%clk 0:01:36.1]} 26. Qf5 {[%clk 0:00:37.2]} 26...
b4 {[%clk 0:01:29.9]} 27. h4 {[%clk 0:00:37.3]} 27... c3 {[%clk 0:01:11.6]} 28.
hxg5 {[%clk 0:00:28.7]} 28... hxg5 {[%clk 0:01:06.3]} 29. h6 {[%clk 0:00:26.2]}
29... cxb2 {[%clk 0:01:01.4]} 30. Qxg5 {[%clk 0:00:26.7]} 30... Na4 {[%clk
0:00:48]} 31. Bh5 {[%clk 0:00:25.8]} 31... Rc8 {[%clk 0:00:22.8]} 32. Bxf7+
{[%clk 0:00:22.1]} 32... Kf8 {[%clk 0:00:21.4]} 33. Qg7+ {[%clk 0:00:23]} 33...
Ke7 {[%clk 0:00:19.2]} 34. Be6+ {[%clk 0:00:23.9]} 34... Ke8 {[%clk 0:00:19]}
35. Qxd7+ {[%clk 0:00:24.5]} 1-0

[Event "*** Titled Tuesday Blitz"]
[Site "Chess.com"]
[Date "2020.04.21"]
[Round "3"]
[White "Teidi96"]
[Black "lukas_111111"]
[Result "0-1"]
[WhiteElo "2182"]
[BlackElo "2517"]
[TimeControl "180+1"]
[EndTime "10:28:19 PDT"]
[Termination "lukas_111111 won on time"]

1. e4 {[%clk 0:03:00.9]} 1... e6 {[%clk 0:02:55.2]} 2. d4 {[%clk 0:03:00.3]}
2... d5 {[%clk 0:02:55.5]} 3. Nd2 {[%clk 0:03:01.2]} 3... c5 {[%clk 0:02:55.1]}
4. exd5 {[%clk 0:03:00.6]} 4... Qxd5 {[%clk 0:02:55.2]} 5. Ngf3 {[%clk 0:03:00]}
5... cxd4 {[%clk 0:02:55.5]} 6. Bc4 {[%clk 0:02:59.3]} 6... Qd6 {[%clk
0:02:55.9]} 7. Qe2 {[%clk 0:02:58.4]} 7... Nc6 {[%clk 0:02:55.9]} 8. Nb3 {[%clk
0:02:57]} 8... Nf6 {[%clk 0:02:55.8]} 9. Bg5 {[%clk 0:02:57.2]} 9... h6 {[%clk
0:02:49]} 10. Bxf6 {[%clk 0:02:55.6]} 10... gxf6 {[%clk 0:02:49.1]} 11. O-O-O
{[%clk 0:02:56]} 11... Bg7 {[%clk 0:02:22.8]} 12. Nbxd4 {[%clk 0:02:45.6]} 12...
O-O {[%clk 0:02:20.5]} 13. Kb1 {[%clk 0:02:27]} 13... Nxd4 {[%clk 0:02:16.1]}
14. Rxd4 {[%clk 0:02:25.8]} 14... Qc5 {[%clk 0:02:12.8]} 15. Rg4 {[%clk
0:02:12.2]} 15... f5 {[%clk 0:02:12.3]} 16. Rg3 {[%clk 0:01:50.1]} 16... f4
{[%clk 0:02:12.2]} 17. Rg4 {[%clk 0:01:36.7]} 17... e5 {[%clk 0:02:12.4]} 18.
Rxg7+ {[%clk 0:01:08.6]} 18... Kxg7 {[%clk 0:02:12]} 19. g3 {[%clk 0:01:08.5]}
19... fxg3 {[%clk 0:01:52.5]} 20. Rg1 {[%clk 0:01:06.9]} 20... Bf5 {[%clk
0:01:47.1]} 21. Rxg3+ {[%clk 0:01:05.2]} 21... Bg6 {[%clk 0:01:46.1]} 22. Nxe5
{[%clk 0:00:45.2]} 22... Rfe8 {[%clk 0:01:45.5]} 23. f4 {[%clk 0:00:44.6]} 23...
Rad8 {[%clk 0:01:44.7]} 24. Bd3 {[%clk 0:00:37.2]} 24... Rxd3 {[%clk 0:01:32.2]}
25. Qxd3 {[%clk 0:00:33.1]} 25... Rxe5 {[%clk 0:01:20.3]} 26. fxe5 {[%clk
0:00:28.6]} 26... Qxe5 {[%clk 0:01:20.2]} 27. a3 {[%clk 0:00:19.3]} 27... Qe1+
{[%clk 0:01:14.8]} 28. Ka2 {[%clk 0:00:18.8]} 28... Qe6+ {[%clk 0:01:14.8]} 29.
Qb3 {[%clk 0:00:18.4]} 29... Qe4 {[%clk 0:01:08.2]} 30. Qc3+ {[%clk 0:00:18]}
30... Kh7 {[%clk 0:01:07.8]} 31. Rh3 {[%clk 0:00:12.5]} 31... h5 {[%clk
0:01:06.6]} 32. Re3 {[%clk 0:00:10.6]} 32... Qd5+ {[%clk 0:01:04.1]} 33. b3
{[%clk 0:00:09.5]} 33... Qd1 {[%clk 0:00:59.9]} 34. Kb2 {[%clk 0:00:08.6]} 34...
Qg1 {[%clk 0:00:57.5]} 35. Re8 {[%clk 0:00:08]} 35... Kh6 {[%clk 0:00:56.9]} 36.
Rh8+ {[%clk 0:00:07.5]} 36... Kg5 {[%clk 0:00:56.9]} 37. Qe5+ {[%clk 0:00:06.6]}
37... Kg4 {[%clk 0:00:56.3]} 38. Rd8 {[%clk 0:00:04]} 38... Qf2 {[%clk
0:00:50.8]} 39. Rd4+ {[%clk 0:00:03.6]} 39... Kh3 {[%clk 0:00:50.9]} 0-1

[Event "*** Titled Tuesday Blitz"]
[Site "Chess.com"]
[Date "2020.04.21"]
[Round "3"]
[White "igorcadilhac"]
[Black "PauloCesarCosta_sad"]
[Result "0-1"]
[WhiteElo "2295"]
[BlackElo "2059"]
[TimeControl "180+1"]
[EndTime "10:28:19 PDT"]
[Termination "PauloCesarCosta_sad won on time"]

1. e4 {[%clk 0:01:52.8]} 1... e6 {[%clk 0:03:00.9]} 2. d4 {[%clk 0:01:51.8]}
2... d5 {[%clk 0:03:01.4]} 3. Nd2 {[%clk 0:01:52.7]} 3... Nf6 {[%clk 0:03:00.8]}
4. e5 {[%clk 0:01:53.2]} 4... Nfd7 {[%clk 0:03:00.6]} 5. Bd3 {[%clk 0:01:53.5]}
5... c5 {[%clk 0:03:00.8]} 6. c3 {[%clk 0:01:53.8]} 6... Nc6 {[%clk 0:03:01]} 7.
Ne2 {[%clk 0:01:54.3]} 7... Qb6 {[%clk 0:03:01.1]} 8. Nf3 {[%clk 0:01:54.1]}
8... cxd4 {[%clk 0:03:01.1]} 9. cxd4 {[%clk 0:01:55]} 9... f6 {[%clk 0:03:01.3]}
10. exf6 {[%clk 0:01:48.9]} 10... Nxf6 {[%clk 0:02:59.6]} 11. O-O {[%clk
0:01:48.9]} 11... Bd6 {[%clk 0:02:59.6]} 12. Re1 {[%clk 0:01:36.2]} 12... O-O
{[%clk 0:02:46.9]} 13. Nc3 {[%clk 0:01:27.8]} 13... Bd7 {[%clk 0:02:36.2]} 14.
a3 {[%clk 0:01:22]} 14... Rae8 {[%clk 0:02:30.4]} 15. Bc2 {[%clk 0:01:20.8]}
15... e5 {[%clk 0:02:24]} 16. Nxd5 {[%clk 0:01:11.8]} 16... Nxd5 {[%clk
0:02:12.2]} 17. dxe5 {[%clk 0:01:12.2]} 17... Nxe5 {[%clk 0:01:57.4]} 18. Qxd5+
{[%clk 0:01:01.6]} 18... Be6 {[%clk 0:01:57.6]} 19. Qe4 {[%clk 0:00:25.6]} 19...
g6 {[%clk 0:01:57.8]} 20. Be3 {[%clk 0:00:22.2]} 20... Nxf3+ {[%clk 0:01:48.5]}
21. gxf3 {[%clk 0:00:20.4]} 21... Qxb2 {[%clk 0:01:43.8]} 22. Rab1 {[%clk
0:00:20.3]} 22... Qxa3 {[%clk 0:01:36.1]} 23. Rxb7 {[%clk 0:00:16.8]} 23... Bf7
{[%clk 0:01:28.8]} 24. Qd4 {[%clk 0:00:12.9]} 24... Bc5 {[%clk 0:01:23]} 25. Qg4
{[%clk 0:00:04.7]} 25... Bxe3 {[%clk 0:01:16]} 26. fxe3 {[%clk 0:00:05.6]} 26...
Rxe3 {[%clk 0:01:07.1]} 27. Rf1 {[%clk 0:00:05.3]} 27... Qc5 {[%clk 0:00:58.5]}
28. Kh1 {[%clk 0:00:03.9]} 28... Qxc2 {[%clk 0:00:53]} 29. Qd4 {[%clk
0:00:02.4]} 29... Qe2 {[%clk 0:00:38.7]} 30. h4 {[%clk 0:00:01.7]} 30... Qxf1+
{[%clk 0:00:36.5]} 31. Kh2 {[%clk 0:00:02.6]} 31... Qf2+ {[%clk 0:00:36.3]} 32.
Kh3 {[%clk 0:00:02.7]} 32... Rxf3+ {[%clk 0:00:36.5]} 33. Kg4 {[%clk 0:00:02.9]}
33... Qxd4+ {[%clk 0:00:35.8]} 0-1

[Event "*** Titled Tuesday Blitz"]
[Site "Chess.com"]
[Date "2020.04.21"]
[Round "3"]
[White "BaMBoMaTTo"]
[Black "Jbd735"]
[Result "0-1"]
[WhiteElo "2702"]
[BlackElo "2450"]
[TimeControl "180+1"]
[EndTime "10:28:20 PDT"]
[Termination "Jbd735 won by checkmate"]

1. e4 {[%clk 0:02:57.5]} 1... e5 {[%clk 0:02:59.2]} 2. Nf3 {[%clk 0:02:57.3]}
2... Nc6 {[%clk 0:02:59.5]} 3. Bb5 {[%clk 0:02:57.4]} 3... a6 {[%clk 0:02:59.3]}
4. Ba4 {[%clk 0:02:57.7]} 4... Nf6 {[%clk 0:02:59]} 5. O-O {[%clk 0:02:58]} 5...
Be7 {[%clk 0:02:59.3]} 6. Re1 {[%clk 0:02:56.9]} 6... b5 {[%clk 0:02:59.9]} 7.
Bb3 {[%clk 0:02:56.7]} 7... d6 {[%clk 0:03:00.5]} 8. c3 {[%clk 0:02:56.2]} 8...
O-O {[%clk 0:03:01]} 9. h3 {[%clk 0:02:56.5]} 9... Na5 {[%clk 0:03:01.6]} 10.
Bc2 {[%clk 0:02:56.3]} 10... c5 {[%clk 0:03:02.2]} 11. d4 {[%clk 0:02:56.3]}
11... Qc7 {[%clk 0:03:00.5]} 12. Nbd2 {[%clk 0:02:56.3]} 12... Nc6 {[%clk
0:03:00.8]} 13. d5 {[%clk 0:02:54.7]} 13... Nd8 {[%clk 0:03:01]} 14. a4 {[%clk
0:02:54.7]} 14... Rb8 {[%clk 0:03:01.4]} 15. axb5 {[%clk 0:02:54.7]} 15... axb5
{[%clk 0:03:01.1]} 16. b4 {[%clk 0:02:55.3]} 16... c4 {[%clk 0:02:57.8]} 17. Nf1
{[%clk 0:02:54.7]} 17... Ne8 {[%clk 0:02:57.8]} 18. N3h2 {[%clk 0:02:53.5]}
18... f6 {[%clk 0:02:45.2]} 19. f4 {[%clk 0:02:47.3]} 19... exf4 {[%clk
0:02:42.9]} 20. Bxf4 {[%clk 0:02:48.2]} 20... Nf7 {[%clk 0:02:43.3]} 21. Nf3
{[%clk 0:02:37.5]} 21... Bd7 {[%clk 0:02:34.4]} 22. Ne3 {[%clk 0:02:31.7]} 22...
g6 {[%clk 0:02:32.6]} 23. Nd4 {[%clk 0:02:30.4]} 23... Ng7 {[%clk 0:02:31.7]}
24. Ra5 {[%clk 0:01:29.9]} 24... Ne5 {[%clk 0:02:14.5]} 25. Qa1 {[%clk
0:01:25.8]} 25... Rfe8 {[%clk 0:01:55.8]} 26. Qa3 {[%clk 0:01:10]} 26... Nh5
{[%clk 0:01:51.8]} 27. Bh2 {[%clk 0:01:05.3]} 27... Bf8 {[%clk 0:01:44]} 28. Ra1
{[%clk 0:01:00.6]} 28... Bh6 {[%clk 0:01:43.2]} 29. Nf1 {[%clk 0:00:52.6]} 29...
Nf4 {[%clk 0:01:35.7]} 30. Ra7 {[%clk 0:00:48.4]} 30... Qc8 {[%clk 0:01:06.9]}
31. h4 {[%clk 0:00:24.9]} 31... Nxg2 {[%clk 0:01:00.8]} 32. Kxg2 {[%clk
0:00:22.8]} 32... Bh3+ {[%clk 0:00:59]} 33. Kf2 {[%clk 0:00:08.9]} 33... Qg4
{[%clk 0:00:54.3]} 34. Bd1 {[%clk 0:00:05.4]} 34... Nd3# {[%clk 0:00:49]} 0-1